[Event "ESCC-65 2022"]
[Site "Lublin"]
[Date "2022.07.07"]
[Round "3.12"]
[White "Scowen, Roger S"]
[Black "Kasprzyk, Irena"]
[Result "0-1"]
[ECO "B72"]
[WhiteElo "1864"]
[BlackElo "2017"]
[Annotator "NA RC"]
[PlyCount "76"]
[EventDate "2022.07.05"]
[EventType "swiss"]
[EventCountry "POL"]
[SourceTitle "playchess.com"]
[Source "ChessBase"]
[SourceQuality "1"]
[TimeControl "40/5400+30:1800+30"]

1. e4 {[%emt 0:00:05]} c5 {[%emt 0:00:23]} 2. Nf3 {[%emt 0:00:13]} d6 {[%emt 0:00:09]} 3. d4 {[%emt 0:00:06]} cxd4 {[%emt 0:00:09]} 4. Nxd4 {[%emt 0:00:03]} Nf6 {[%emt 0:00:08]} 5. Nc3 {[%emt 0:00:14]} g6 {[%emt 0:00:08]} 6. Be2 {[%emt 0:00:55]} Bg7 {[%emt 0:00:27]} 7. Be3 {[%emt 0:01:53]} Nc6 {[%emt 0:00:44]} 8. f3 {[%emt 0:04:48]} O-O {[%emt 0:00:11]} 9. Qd2 {[%emt 0:00:48]} d5 {[%emt 0:01:01]} 10. exd5 {[%emt 0:03:16]} Nxd5 {[%emt 0:00:18]} 11. Nxc6 {[%emt 0:11:03]} bxc6 {[%emt 0:00:13]} 12. Rd1 {[%emt 0:05:36]} e6 {[%emt 0:06:00]} 13. Bc5 {[%emt 0:01:55]} Re8 {[%emt 0:02:13]} 14. Ne4 {[%emt 0:01:59]} Qh4+ {[%emt 0:03:01]} 15. g3 {[%emt 0:04:18]} Qh3 {[%emt 0:04:17]} 16. c4 {[%emt 0:05:50]} Nf6 {[%emt 0:02:12]} 17. Nf2 {[%emt 0:10:12]} Qf5 {[%emt 0:02:16]} 18. Be3 {[%emt 0:01:06]} e5 {[%emt 0:00:29]} 19. O-O {[%emt 0:01:42]} e4 {[%emt 0:03:49]} 20. fxe4 {[%emt 0:05:56]} Nxe4 {[%emt 0:00:20]} 21. Nxe4 {[%emt 0:00:22]} Qxe4 {[%emt 0:00:19]} 22. Rf3 {[%emt 0:01:26]} Bg4 {[%emt 0:00:53]} 23. Rf4 {[%emt 0:00:43]} Qxe3+ {[%emt 0:00:34]} 24. Qxe3 {[%emt 0:00:02]} Rxe3 {[%emt 0:00:14]} 25. Bxg4 {[%emt 0:00:10]} Bxb2 {[%emt 0:00:50]} 26. Kf2 {[%emt 0:08:06]} Rae8 {[%emt 0:05:05]} 27. Bd7 {[%emt 0:06:32]} Re2+ {[%emt 0:01:32]} 28. Kf1 {[%emt 0:00:10]} R8e7 {[%emt 0:00:43]} 29. Bxc6 {[%emt 0:00:27]} Rxh2 {[%emt 0:00:17]} 30. Rd8+ {[%emt 0:04:11]} Kg7 {[%emt 0:00:16]} 31. Rd7 {[%emt 0:00:15]} Rxd7 {[%emt 0:01:30]} 32. Bxd7 {[%emt 0:00:02]} Be5 {[%emt 0:00:48]} 33. Rf3 {[%emt 0:04:37]} Rxa2 {[%emt 0:00:24]} 34. Bc6 {[%emt 0:00:53]} h5 {[%emt 0:01:26]} 35. Bd5 {[%emt 0:00:17]} f6 {[%emt 0:00:34]} 36. Rf2 {[%emt 0:00:27]} Ra3 {[%emt 0:00:28]} 37. Rf3 {[%emt 0:00:13]} Rxf3+ {[%emt 0:00:21]} 38. Bxf3 {[%emt 0:00:01]} Bxg3 {[%emt 0:00:11]} 0-1

[Event "ESCC-65 2022"]
[Site "Lublin"]
[Date "2022.07.07"]
[Round "3.13"]
[White "Patola, Eero"]
[Black "Gasik, Piotr"]
[Result "1/2-1/2"]
[ECO "B02"]
[WhiteElo "1810"]
[BlackElo "1990"]
[Annotator "NA RC"]
[PlyCount "67"]
[EventDate "2022.07.05"]
[EventType "swiss"]
[EventCountry "POL"]
[SourceTitle "playchess.com"]
[Source "ChessBase"]
[SourceQuality "1"]
[TimeControl "40/5400+30:1800+30"]

1. e4 {[%emt 0:00:22]} Nf6 {[%emt 0:00:20]} 2. d3 {[%emt 0:01:36]} d5 {[%emt 0:00:08]} 3. e5 {[%emt 0:02:00]} Nfd7 {[%emt 0:00:06]} 4. f4 {[%emt 0:00:53]} c5 {[%emt 0:00:52]} 5. Nf3 {[%emt 0:00:29]} Nc6 {[%emt 0:00:10]} 6. Nc3 {[%emt 0:04:25]} e6 {[%emt 0:01:04]} 7. Be2 {[%emt 0:08:04]} b5 {[%emt 0:00:28]} 8. a3 {[%emt 0:04:10]} Qb6 {[%emt 0:01:33]} 9. Bd2 {[%emt 0:06:56]} Be7 {[%emt 0:02:14]} 10. h4 {[%emt 0:05:28]} a5 {[%emt 0:03:03]} 11. a4 {[%emt 0:01:13]} b4 {[%emt 0:01:12]} 12. Nb5 {[%emt 0:00:44]} O-O {[%emt 0:04:25]} 13. c3 {[%emt 0:02:56]} Ba6 {[%emt 0:03:53]} 14. c4 {[%emt 0:03:42]} d4 {[%emt 0:08:13]} 15. Ng5 {[%emt 0:01:55]} Nd8 {[%emt 0:00:31]} 16. Bf3 {[%emt 0:00:59]} Bb7 {[%emt 0:00:21]} 17. Be4 {[%emt 0:13:30]} f5 {[%emt 0:00:31]} 18. Bxb7 {[%emt 0:12:12]} Qxb7 {[%emt 0:00:54]} 19. Qf3 {[%emt 0:00:50]} Qxf3 {[%emt 0:04:12]} 20. Nxf3 {[%emt 0:05:28]} Rc8 {[%emt 0:00:07]} 21. b3 {[%emt 0:01:20]} h6 {[%emt 0:02:10]} 22. Ke2 {[%emt 0:00:54]} h5 {[%emt 0:02:27]} 23. Rag1 {[%emt 0:02:00]} Nf7 {[%emt 0:00:24]} 24. Na7 {[%emt 0:02:22]} Rc7 {[%emt 0:00:15]} 25. Nb5 {[%emt 0:00:19]} Rb7 {[%emt 0:00:08]} 26. Ng5 {[%emt 0:00:45]} Bxg5 {[%emt 0:00:58]} 27. hxg5 {[%emt 0:00:43]} g6 {[%emt 0:01:01]} 28. Re1 {[%emt 0:01:47]} Kg7 {[%emt 0:02:03]} 29. Kf3 {[%emt 0:00:27]} Re8 {[%emt 0:01:04]} 30. Re2 {[%emt 0:01:02]} Nf8 {[%emt 0:01:06]} 31. Be1 {[%emt 0:01:01]} Rd7 {[%emt 0:00:15]} 32. Bf2 {[%emt 0:00:24]} Rc8 {[%emt 0:01:23]} 33. Rhe1 {[%emt 0:00:46]} Rc6 {[%emt 0:00:28]} 34. g3 {[%emt 0:01:52]} 1/2-1/2

[Event "ESCC-65 2022"]
[Site "Lublin"]
[Date "2022.07.07"]
[Round "3.14"]
[White "Krupa, Jerzy"]
[Black "Gromowski, Stanislaw"]
[Result "1-0"]
[ECO "B51"]
[WhiteElo "1771"]
[BlackElo "1613"]
[Annotator "NA RC COMBH"]
[PlyCount "139"]
[EventDate "2022.07.05"]
[EventType "swiss"]
[EventCountry "POL"]
[SourceTitle "playchess.com"]
[Source "ChessBase"]
[SourceQuality "1"]
[TimeControl "40/5400+30:1800+30"]

1. e4 {[%emt 0:00:04]} c5 {[%emt 0:00:16]} 2. Nf3 {[%emt 0:00:40]} d6 {[%emt 0:00:19]} 3. Bb5+ {[%emt 0:00:10]} Nc6 {[%emt 0:00:17]} 4. O-O {[%emt 0:00:25]} Nf6 {[%emt 0:02:28]} 5. Re1 {[%emt 0:00:27]} e5 {[%emt 0:01:03]} 6. c3 {[%emt 0:00:31]} Bd7 {[%emt 0:00:47]} 7. d4 {[%emt 0:00:18]} Be7 {[%emt 0:01:54]} 8. dxc5 {[%emt 0:05:13]} Qc7 {[%emt 0:02:36]} 9. cxd6 {[%emt 0:00:45]} Bxd6 {[%emt 0:00:22]} 10. Bg5 {[%emt 0:02:25]} Be7 {[%emt 0:01:51]} 11. Nbd2 {[%emt 0:02:10]} a6 {[%emt 0:00:20]} 12. Ba4 {[%emt 0:07:43]} O-O {[%emt 0:00:58]} 13. Bb3 {[%emt 0:04:54]} Rad8 {[%emt 0:00:45]} 14. Qe2 {[%emt 0:00:26]} h6 {[%emt 0:01:47]} 15. Bxf6 {[%emt 0:01:16]} Bxf6 {[%emt 0:00:13]} 16. Nc4 {[%emt 0:00:44]} Bg4 {[%emt 0:01:27]} 17. Rad1 {[%emt 0:01:02]} Bh5 {[%emt 0:04:40]} 18. Ne3 {[%emt 0:00:36]} Ne7 {[%emt 0:03:03]} 19. g4 {[%emt 0:04:01]} Bg6 {[%emt 0:03:48]} 20. Nd5 {[%emt 0:00:22]} Nxd5 {[%emt 0:05:05]} 21. Rxd5 {[%emt 0:00:43]} Rd7 {[%emt 0:04:00]} 22. Red1 {[%emt 0:01:10]} Rfd8 {[%emt 0:00:36]} 23. h3 {[%emt 0:01:13]} Rxd5 {[%emt 0:01:27]} 24. Rxd5 {[%emt 0:01:03]} Rxd5 {[%emt 0:06:30]} 25. Bxd5 {[%emt 0:00:34]} Qb6 {[%emt 0:02:49]} 26. b4 {[%emt 0:01:33]} Qc7 {[%emt 0:04:34]} 27. c4 {[%emt 0:01:28]} Qb6 {[%emt 0:00:39]} 28. a3 {[%emt 0:00:30]} Qc7 {[%emt 0:01:34]} 29. Kg2 {[%emt 0:01:14]} b6 {[%emt 0:01:00]} 30. a4 {[%emt 0:00:51]} a5 {[%emt 0:00:24]} 31. bxa5 {[%emt 0:03:48]} bxa5 {[%emt 0:00:14]} 32. Qb2 {[%emt 0:00:12]} Qd8 {[%emt 0:10:07]} 33. c5 {[%emt 0:04:00]} h5 {[%emt 0:00:30]} 34. c6 {[%emt 0:01:56]} hxg4 {[%emt 0:00:44]} 35. hxg4 {[%emt 0:00:02]} Qc8 {[%emt 0:01:05]} 36. Kg3 {[%emt 0:00:21]} Qc7 {[%emt 0:01:20]} 37. Qb7 {[%emt 0:00:31]} Bd8 {[%emt 0:00:25]} 38. Qa8 {[%emt 0:05:18]} Kf8 {[%emt 0:01:33]} 39. Kh3 {[%emt 0:01:37]} Kg8 {[%emt 0:03:19]} 40. Nxe5 {[%emt 0:00:00]} Kh7 {[%emt 0:00:00]} 41. Nf3 {[%emt 0:08:17]} Qd6 {[%emt 0:04:01]} 42. Qc8 {[%emt 0:06:32]} Bc7 {[%emt 0:01:14]} 43. Kg2 {[%emt 0:00:57]} Qf4 {[%emt 0:05:06]} 44. Qd7 {[%emt 0:00:20]} Bb6 {[%emt 0:00:50]} 45. Qc8 {[%emt 0:07:14]} Bc7 {[%emt 0:00:38]} 46. g5 {[%emt 0:07:11]} Bb6 {[%emt 0:04:03]} 47. Qh3+ {[%emt 0:01:30]} Kg8 {[%emt 0:00:26]} 48. Qg3 {[%emt 0:00:13]} Qxg3+ {[%emt 0:02:48]} 49. Kxg3 {[%emt 0:00:02]} Kf8 {[%emt 0:00:28]} 50. Ne5 {[%emt 0:00:38]} Bc7 {[%emt 0:00:36]} 51. f4 {[%emt 0:01:36]} Bh5 {[%emt 0:00:37]} 52. Nd7+ {[%emt 0:04:35]} Ke7 {[%emt 0:00:21]} 53. e5 {[%emt 0:06:12]} Bd1 {[%emt 0:00:41]} 54. Nc5 {[%emt 0:00:47]} Bb6 {[%emt 0:05:15]} 55. Bb3 {[%emt 0:04:05]} Be2 {[%emt 0:09:05]} 56. Ne4 {[%emt 0:00:47]} Bc7 {[%emt 0:01:36]} 57. Nc3 {[%emt 0:00:22]} Bh5 {[%emt 0:01:45]} 58. Nb5 {[%emt 0:01:27]} Kd8 {[%emt 0:00:26]} 59. Nd6 {[%emt 0:00:40]} Ke7 {[%emt 0:00:37]} 60. Kh4 {[%emt 0:08:07]} Bf3 {[%emt 0:06:39]} 61. Nb5 {[%emt 0:03:11]} Kd8 {[%emt 0:00:51]} 62. Nxc7 {[%emt 0:00:44]} Kxc7 {[%emt 0:00:23]} 63. Bxf7 {[%emt 0:00:04]} Bxc6 {[%emt 0:01:13]} 64. Bb3 {[%emt 0:00:09]} Kd8 {[%emt 0:01:01]} 65. f5 {[%emt 0:00:44]} Ke7 {[%emt 0:00:33]} 66. g6 {[%emt 0:00:34]} Kf8 {[%emt 0:04:16]} 67. Kg5 {[%emt 0:00:14]} Bd7 {[%emt 0:01:44]} 68. f6 {[%emt 0:00:36]} Bc6 {[%emt 0:00:49]} 69. e6 {[%emt 0:01:01]} gxf6+ {[%emt 0:00:26]} 70. Kxf6 1-0

[Event "ESCC-65 2022"]
[Site "Lublin"]
[Date "2022.07.07"]
[Round "3.15"]
[White "Virtanen, Esko"]
[Black "Chubar, Vladimir"]
[Result "0-1"]
[ECO "A04"]
[WhiteElo "1709"]
[BlackElo "1809"]
[Annotator "NA RC COMBH"]
[PlyCount "94"]
[EventDate "2022.07.05"]
[EventType "swiss"]
[EventCountry "POL"]
[SourceTitle "playchess.com"]
[Source "ChessBase"]
[SourceQuality "1"]
[TimeControl "40/5400+30:1800+30"]

1. Nf3 {[%emt 0:00:03]} g6 {[%emt 0:02:03]} 2. d4 {[%emt 0:00:11]} Bg7 {[%emt 0:00:22]} 3. c4 {[%emt 0:00:15]} c5 {[%emt 0:01:26]} 4. d5 {[%emt 0:01:16]} e5 {[%emt 0:01:46]} 5. dxe6 {[%emt 0:02:41]} fxe6 {[%emt 0:00:20]} 6. Nc3 {[%emt 0:00:21]} Nf6 {[%emt 0:05:29]} 7. Bf4 {[%emt 0:00:33]} Qa5 {[%emt 0:03:35]} 8. Qa4 {[%emt 0:08:29]} Qxa4 {[%emt 0:04:58]} 9. Nxa4 {[%emt 0:00:03]} Ne4 {[%emt 0:00:16]} 10. Be5 {[%emt 0:05:57]} Bxe5 {[%emt 0:04:41]} 11. Nxe5 {[%emt 0:00:45]} d6 {[%emt 0:01:50]} 12. Nd3 {[%emt 0:06:09]} Bd7 {[%emt 0:01:54]} 13. Nc3 {[%emt 0:02:27]} Nxc3 {[%emt 0:01:44]} 14. bxc3 {[%emt 0:00:57]} Nc6 {[%emt 0:00:26]} 15. e3 {[%emt 0:01:09]} Na5 {[%emt 0:04:20]} 16. Nf4 {[%emt 0:00:37]} g5 {[%emt 0:02:16]} 17. Nh5 {[%emt 0:00:12]} Ke7 {[%emt 0:00:42]} 18. Be2 {[%emt 0:00:19]} Be8 {[%emt 0:02:31]} 19. Ng3 {[%emt 0:00:22]} Bg6 {[%emt 0:02:17]} 20. O-O {[%emt 0:00:10]} h5 {[%emt 0:01:45]} 21. Rfd1 {[%emt 0:02:10]} Rad8 {[%emt 0:07:10]} 22. Rd2 {[%emt 0:02:58]} Nc6 {[%emt 0:06:32]} 23. f3 {[%emt 0:03:24]} Ne5 {[%emt 0:03:53]} 24. e4 {[%emt 0:00:22]} Rhf8 {[%emt 0:03:17]} 25. Rb1 {[%emt 0:09:02]} Rd7 {[%emt 0:00:52]} 26. Rf1 {[%emt 0:00:07]} Rf4 {[%emt 0:05:17]} 27. h3 {[%emt 0:08:05]} Rd8 {[%emt 0:02:28]} 28. Rb1 {[%emt 0:00:45]} b6 {[%emt 0:00:25]} 29. Rbd1 {[%emt 0:00:03]} g4 {[%emt 0:02:06]} 30. hxg4 {[%emt 0:06:12]} hxg4 {[%emt 0:00:14]} 31. fxg4 {[%emt 0:00:29]} Nxg4 {[%emt 0:01:07]} 32. a4 {[%emt 0:02:20]} Ne5 {[%emt 0:05:07]} 33. a5 {[%emt 0:01:03]} bxa5 {[%emt 0:02:12]} 34. Ra1 {[%emt 0:01:22]} Bxe4 {[%emt 0:02:13]} 35. Nxe4 {[%emt 0:00:58]} Rxe4 {[%emt 0:00:14]} 36. Rxa5 {[%emt 0:00:02]} Rd7 {[%emt 0:00:23]} 37. Rda2 {[%emt 0:00:08]} Nxc4 {[%emt 0:00:23]} 38. Rxa7 {[%emt 0:00:39]} Ne5 {[%emt 0:00:32]} 39. Rxd7+ {[%emt 0:00:28]} Kxd7 {[%emt 0:00:43]} 40. Bb5+ {[%emt 0:00:00]} Kc7 {[%emt 0:00:00]} 41. Rf2 {[%emt 0:01:20]} c4 {[%emt 0:03:10]} 42. Rf6 {[%emt 0:00:23]} Ng4 {[%emt 0:01:46]} 43. Rf1 {[%emt 0:00:16]} d5 {[%emt 0:00:44]} 44. g3 {[%emt 0:00:41]} Re3 {[%emt 0:01:22]} 45. Rf4 {[%emt 0:00:48]} Rxg3+ {[%emt 0:00:20]} 46. Kf1 {[%emt 0:00:02]} Ne5 {[%emt 0:00:14]} 47. Bxc4 {[%emt 0:01:08]} Nxc4 {[%emt 0:00:17]} 0-1

[Event "ESCC-65 2022"]
[Site "Lublin"]
[Date "2022.07.07"]
[Round "3.16"]
[White "Plesiuk, Jan"]
[Black "Sosnowska, Elzbieta"]
[Result "1/2-1/2"]
[ECO "D32"]
[WhiteElo "1573"]
[BlackElo "1726"]
[Annotator "NA RC COMBH"]
[PlyCount "112"]
[EventDate "2022.07.05"]
[EventType "swiss"]
[EventCountry "POL"]
[SourceTitle "playchess.com"]
[Source "ChessBase"]
[SourceQuality "1"]
[TimeControl "40/5400+30:1800+30"]

1. d4 {[%emt 0:00:05]} d5 {[%emt 0:00:20]} 2. c4 {[%emt 0:00:20]} e6 {[%emt 0:00:10]} 3. Nc3 {[%emt 0:00:20]} c5 {[%emt 0:00:07]} 4. e3 {[%emt 0:00:23]} Nf6 {[%emt 0:00:09]} 5. Nf3 {[%emt 0:00:07]} Nc6 {[%emt 0:01:13]} 6. a3 {[%emt 0:00:23]} a6 {[%emt 0:00:47]} 7. dxc5 {[%emt 0:00:23]} Bxc5 {[%emt 0:00:26]} 8. b4 {[%emt 0:01:38]} Be7 {[%emt 0:01:33]} 9. Bb2 {[%emt 0:01:34]} O-O {[%emt 0:00:10]} 10. Be2 {[%emt 0:01:11]} dxc4 {[%emt 0:01:16]} 11. Bxc4 {[%emt 0:00:03]} b5 {[%emt 0:00:33]} 12. Be2 {[%emt 0:01:01]} Bb7 {[%emt 0:01:04]} 13. O-O {[%emt 0:00:09]} Qb6 {[%emt 0:03:17]} 14. Qb3 {[%emt 0:00:48]} Rfd8 {[%emt 0:07:50]} 15. Rfd1 {[%emt 0:00:03]} h6 {[%emt 0:07:09]} 16. h3 {[%emt 0:00:16]} Bf8 {[%emt 0:00:12]} 17. Ne1 {[%emt 0:01:57]} Ne7 {[%emt 0:01:17]} 18. Bf3 {[%emt 0:00:47]} Ned5 {[%emt 0:01:58]} 19. Rac1 {[%emt 0:02:20]} Nxc3 {[%emt 0:18:04]} 20. Bxc3 {[%emt 0:00:18]} Bxf3 {[%emt 0:00:13]} 21. Nxf3 {[%emt 0:00:40]} Nd5 {[%emt 0:03:46]} 22. Bd4 {[%emt 0:00:03]} Qb7 {[%emt 0:00:16]} 23. Ne5 {[%emt 0:01:21]} Rdc8 {[%emt 0:03:54]} 24. Nd3 {[%emt 0:06:08]} Rxc1 {[%emt 0:00:55]} 25. Rxc1 {[%emt 0:00:05]} Rd8 {[%emt 0:05:51]} 26. Bc5 {[%emt 0:06:24]} Nb6 {[%emt 0:09:42]} 27. Bxf8 {[%emt 0:01:42]} Kxf8 {[%emt 0:00:16]} 28. Nc5 {[%emt 0:00:36]} Qa8 {[%emt 0:00:24]} 29. Rd1 {[%emt 0:01:29]} Rd5 {[%emt 0:05:35]} 30. e4 {[%emt 0:08:56]} Rxd1+ {[%emt 0:03:05]} 31. Qxd1 {[%emt 0:00:01]} Nc4 {[%emt 0:00:15]} 32. a4 {[%emt 0:08:46]} Kg8 {[%emt 0:00:39]} 33. a5 {[%emt 0:03:02]} Qc6 {[%emt 0:03:14]} 34. Qd7 {[%emt 0:02:37]} Qa8 {[%emt 0:07:42]} 35. Qb7 {[%emt 0:00:50]} Qd8 {[%emt 0:00:06]} 36. Qd7 {[%emt 0:00:19]} Qg5 {[%emt 0:00:47]} 37. Qe8+ {[%emt 0:02:59]} Kh7 {[%emt 0:00:31]} 38. Qxf7 {[%emt 0:00:06]} Qc1+ {[%emt 0:03:14]} 39. Kh2 {[%emt 0:00:02]} Ne5 {[%emt 0:00:19]} 40. Qf8 {[%emt 0:00:00]} Ng6 {[%emt 0:00:00]} 41. Qf3 {[%emt 0:04:52]} Qd2 {[%emt 0:03:50]} 42. Nd3 {[%emt 0:04:21]} Qc3 {[%emt 0:02:55]} 43. g3 {[%emt 0:01:52]} Ne5 {[%emt 0:01:57]} 44. Nxe5 {[%emt 0:00:06]} Qxe5 {[%emt 0:00:09]} 45. Qe3 {[%emt 0:02:14]} Qb2 {[%emt 0:02:15]} 46. Qc5 {[%emt 0:02:28]} Qe2 {[%emt 0:00:15]} 47. Qb6 {[%emt 0:10:09]} Qxe4 {[%emt 0:00:44]} 48. Qxa6 {[%emt 0:00:05]} Qxb4 {[%emt 0:00:57]} 49. Qb6 {[%emt 0:00:46]} Qa4 {[%emt 0:00:33]} 50. a6 {[%emt 0:00:01]} b4 {[%emt 0:01:16]} 51. a7 {[%emt 0:00:27]} b3 {[%emt 0:01:04]} 52. Qb7 {[%emt 0:02:00]} b2 {[%emt 0:00:12]} 53. Qxb2 {[%emt 0:01:08]} Qxa7 {[%emt 0:00:02]} 54. Qc2+ {[%emt 0:00:58]} g6 {[%emt 0:00:18]} 55. g4 {[%emt 0:01:04]} Qb8+ {[%emt 0:01:23]} 56. Kg2 {[%emt 0:00:07]} Qe5 {[%emt 0:00:35]} 1/2-1/2

[Event "ESCC-65 2022"]
[Site "Lublin"]
[Date "2022.07.08"]
[Round "4.1"]
[White "Renman, Nils-Gustaf"]
[Black "Petran, Peter"]
[Result "1/2-1/2"]
[ECO "A83"]
[WhiteElo "2311"]
[BlackElo "2234"]
[Annotator "RC"]
[PlyCount "58"]
[EventDate "2022.07.05"]
[EventType "swiss"]
[EventCountry "POL"]
[SourceTitle "playchess.com"]
[Source "ChessBase"]
[SourceQuality "1"]
[TimeControl "40/5400+30:1800+30"]

1. d4 {[%emt 0:00:02]} f5 {[%emt 0:01:03]} 2. e4 {[%emt 0:01:38]} fxe4 {[%emt 0:00:09]} 3. Nc3 {[%emt 0:00:05]} Nf6 {[%emt 0:00:23]} 4. Bg5 {[%emt 0:00:07]} g6 {[%emt 0:03:55]} 5. f3 {[%emt 0:02:47]} exf3 {[%emt 0:05:52]} 6. Nxf3 {[%emt 0:00:08]} d6 {[%emt 0:00:41]} 7. Bc4 {[%emt 0:02:16]} c6 {[%emt 0:00:38]} 8. Qe2 {[%emt 0:06:44]} Bg7 {[%emt 0:00:41]} 9. O-O-O {[%emt 0:00:12]} d5 {[%emt 0:01:22]} 10. Bd3 {[%emt 0:00:55]} Bg4 {[%emt 0:00:21]} 11. Rde1 {[%emt 0:03:50]} Nbd7 {[%emt 0:06:51]} 12. Qe3 {[%emt 0:03:56]} Bxf3 {[%emt 0:00:14]} 13. gxf3 {[%emt 0:00:19]} O-O {[%emt 0:03:53]} 14. Ne2 {[%emt 0:01:52]} Qb6 {[%emt 0:06:36]} 15. Nf4 {[%emt 0:12:38]} Rf7 {[%emt 0:06:52]} 16. Nxg6 {[%emt 0:06:38]} hxg6 {[%emt 0:03:47]} 17. Bxg6 {[%emt 0:02:32]} Raf8 {[%emt 0:00:12]} 18. Rhg1 {[%emt 0:02:47]} c5 {[%emt 0:18:43]} 19. Bh6 {[%emt 0:06:35]} Ne8 {[%emt 0:02:40]} 20. Bxg7 {[%emt 0:16:30]} Rxg7 {[%emt 0:04:42]} 21. Bxe8 {[%emt 0:07:24]} Rxe8 {[%emt 0:00:33]} 22. Rxg7+ {[%emt 0:00:42]} Kxg7 {[%emt 0:00:07]} 23. Qg5+ {[%emt 0:00:33]} Qg6 {[%emt 0:04:11]} 24. Qxd5 {[%emt 0:01:15]} Nf6 {[%emt 0:06:59]} 25. Qxb7 {[%emt 0:02:36]} Qg5+ {[%emt 0:03:23]} 26. Kb1 {[%emt 0:00:29]} Kf8 {[%emt 0:01:05]} 27. dxc5 {[%emt 0:13:21]} Qxc5 {[%emt 0:00:24]} 28. Qa6 {[%emt 0:00:52]} Rb8 {[%emt 0:01:00]} 29. Qe6 {[%emt 0:02:00]} Rc8 {[%emt 0:10:13]} 1/2-1/2

[Event "ESCC-65 2022"]
[Site "Lublin"]
[Date "2022.07.08"]
[Round "4.2"]
[White "Dobosz, Henryk"]
[Black "Syre, Christian"]
[Result "1-0"]
[ECO "A53"]
[WhiteElo "2354"]
[BlackElo "2243"]
[Annotator "RC"]
[PlyCount "118"]
[EventDate "2022.07.05"]
[EventType "swiss"]
[EventCountry "POL"]
[SourceTitle "playchess.com"]
[Source "ChessBase"]
[SourceQuality "1"]
[TimeControl "40/5400+30:1800+30"]

1. d4 {[%emt 0:03:11]} Nf6 {[%emt 0:00:15]} 2. c4 {[%emt 0:01:23]} d6 {[%emt 0:00:42]} 3. Nc3 {[%emt 0:01:07]} Nbd7 {[%emt 0:01:11]} 4. Nf3 {[%emt 0:06:18]} g6 {[%emt 0:00:28]} 5. e4 {[%emt 0:02:03]} e5 {[%emt 0:00:33]} 6. d5 {[%emt 0:08:46]} Nc5 {[%emt 0:10:01]} 7. Qc2 {[%emt 0:00:32]} a5 {[%emt 0:00:07]} 8. Be2 {[%emt 0:03:37]} Bg7 {[%emt 0:03:59]} 9. Bg5 {[%emt 0:00:56]} h6 {[%emt 0:00:35]} 10. Bh4 {[%emt 0:00:06]} Qd7 {[%emt 0:31:18]} 11. Nd2 {[%emt 0:02:18]} h5 {[%emt 0:04:46]} 12. Nb3 {[%emt 0:14:13]} b6 {[%emt 0:03:29]} 13. Bg5 {[%emt 0:05:07]} Nh7 {[%emt 0:04:25]} 14. Be3 {[%emt 0:02:28]} Bf6 {[%emt 0:00:45]} 15. h4 {[%emt 0:02:01]} Qd8 {[%emt 0:03:10]} 16. g3 {[%emt 0:00:14]} Nxb3 {[%emt 0:09:35]} 17. Qxb3 {[%emt 0:02:49]} Nf8 {[%emt 0:00:22]} 18. Qd1 {[%emt 0:01:25]} Nd7 {[%emt 0:00:11]} 19. a3 {[%emt 0:00:31]} Be7 {[%emt 0:05:26]} 20. Bd3 {[%emt 0:10:57]} Nf6 {[%emt 0:07:45]} 21. f3 {[%emt 0:02:19]} Nd7 {[%emt 0:04:06]} 22. Bc2 {[%emt 0:08:06]} g5 {[%emt 0:00:20]} 23. hxg5 {[%emt 0:02:34]} Bxg5 {[%emt 0:00:01]} 24. f4 {[%emt 0:02:30]} exf4 {[%emt 0:01:07]} 25. gxf4 {[%emt 0:00:06]} Bh4+ {[%emt 0:00:47]} 26. Kd2 {[%emt 0:00:08]} Nc5 {[%emt 0:00:32]} 27. Qe2 {[%emt 0:04:30]} Bg4 {[%emt 0:00:10]} 28. Qh2 {[%emt 0:00:07]} Bf6 {[%emt 0:00:20]} 29. e5 {[%emt 0:01:24]} dxe5 {[%emt 0:00:53]} 30. fxe5 {[%emt 0:00:10]} Bg5 {[%emt 0:00:10]} 31. Rae1 {[%emt 0:00:16]} Bxe3+ {[%emt 0:02:32]} 32. Rxe3 {[%emt 0:00:08]} Qg5 {[%emt 0:00:00]} 33. Qh4 {[%emt 0:05:25]} Qxh4 {[%emt 0:02:46]} 34. Rxh4 {[%emt 0:00:08]} O-O-O {[%emt 0:00:16]} 35. Bd1 {[%emt 0:01:21]} Rhg8 {[%emt 0:00:50]} 36. Bxg4+ {[%emt 0:01:05]} hxg4 {[%emt 0:00:02]} 37. Rg3 {[%emt 0:02:22]} Nd7 {[%emt 0:00:53]} 38. Rhxg4 {[%emt 0:01:11]} Rxg4 {[%emt 0:00:02]} 39. Rxg4 {[%emt 0:00:09]} Nxe5 {[%emt 0:00:04]} 40. Rf4 {[%emt 0:00:00]} Rh8 {[%emt 0:00:00]} 41. Ke3 {[%emt 0:04:02]} Rh7 {[%emt 0:22:58]} 42. Kd4 {[%emt 0:00:42]} Ng6 {[%emt 0:00:38]} 43. Rf6 {[%emt 0:01:36]} Kd7 {[%emt 0:00:56]} 44. Ne4 {[%emt 0:02:53]} Rg7 {[%emt 0:00:07]} 45. c5 {[%emt 0:02:15]} bxc5+ {[%emt 0:03:10]} 46. Nxc5+ {[%emt 0:00:12]} Ke7 {[%emt 0:02:40]} 47. Rc6 {[%emt 0:06:49]} Kd8 {[%emt 0:00:01]} 48. Ra6 {[%emt 0:00:31]} Rh7 {[%emt 0:00:16]} 49. Rxa5 {[%emt 0:03:58]} Rh4+ {[%emt 0:00:05]} 50. Kc3 {[%emt 0:00:43]} Nf4 {[%emt 0:05:29]} 51. Na6 {[%emt 0:05:01]} Rh5 {[%emt 0:02:19]} 52. Nb4 {[%emt 0:00:23]} Kd7 {[%emt 0:00:11]} 53. Kd4 {[%emt 0:00:51]} Ne2+ {[%emt 0:01:35]} 54. Kd3 {[%emt 0:01:06]} Re5 {[%emt 0:00:48]} 55. Ra6 {[%emt 0:01:44]} f5 {[%emt 0:00:38]} 56. Rf6 {[%emt 0:01:21]} f4 {[%emt 0:00:51]} 57. Nc6 {[%emt 0:01:38]} Re3+ {[%emt 0:00:04]} 58. Kd2 {[%emt 0:00:03]} Re4 {[%emt 0:00:48]} 59. b4 {[%emt 0:02:29]} Ng3 {[%emt 0:01:32]} 1-0